bitfinex/quotes_ETHUSD_20230118
["timestamp","ask_amount","ask_price","bid_price","bid_amount"]
[1674056907241,20.03500633,1570.8,1570.1,1.0]
[1674056907242,1.93,1570.6,1570.1,1.0]
[1674056907451,1.93,1570.6,1570.1,1.09]
[1674056907452,19.1046,1570.3,1570.1,1.09]
[1674056907719,0.50844,1570.2,1570.1,1.124]
[1674056907887,7.16725,1570.2,1570.1,0.124]
[1674056908101,1.27644,1570.2,1570.1,0.024]
[1674056908335,7.64515,1570.2,1569.6,0.28772888]
[1674056908547,13.24672,1570.1,1569.7,1.0]
[1674056908735,13.24672,1570.1,1569.8,0.29017694]
[1674056908957,0.03064,1570.0,1569.8,0.29017694]
[1674056909301,0.03064,1570.0,1569.6,0.28772888]
[1674056909302,0.4779,1569.9,1569.6,0.28772888]
[1674056909621,6.87872,1569.9,1569.6,0.28772888]
[1674056909779,6.37064,1569.7,1569.1,0.42854224]
[1674056909988,0.478,1569.6,1569.1,0.42854224]
[1674056910200,0.03064,1569.6,1569.1,0.42454224]
[1674056910409,0.03064,1569.6,1568.9,6.37386]
[1674056910781,0.03064,1569.6,1568.8,1.066]
[1674056910782,13.22103,1569.5,1568.8,0.066]
[1674056910957,1.96864,1569.4,1568.8,0.052]
[1674056911148,1.96864,1569.4,1568.5,0.791911]
[1674056911149,19.62614,1569.3,1568.5,0.791911]
[1674056911369,0.03064,1569.2,1568.5,0.691911]
[1674056911571,6.37352,1569.0,1568.5,0.691911]
[1674056911763,0.50884,1568.9,1568.5,0.691911]
[1674056911970,6.40502,1568.8,1568.5,0.691911]
[1674056912287,0.50894,1568.7,1568.5,0.691911]
[1674056912502,0.03064,1568.6,1568.5,0.691911]
[1674056912971,0.099,1569.0,1568.5,0.691911]
[1674056913186,0.099,1569.3,1568.5,1.170311]
[1674056913336,0.099,1569.3,1568.5,0.691911]
[1674056913542,2.57921339,1569.5,1568.5,0.691911]
[1674056913806,6.37245,1569.3,1568.5,0.691911]
[1674056914015,0.50874,1569.2,1568.5,0.691911]
[1674056914186,0.03064,1569.2,1568.5,0.691911]
[1674056914400,0.03064,1569.2,1568.5,7.545801]
[1674056914657,0.03064,1569.2,1568.7,1.922]
[1674056914848,0.045,1569.6,1569.0,1.925]
[1674056915059,0.045,1569.6,1569.2,1.938]
[1674056915224,0.045,1569.8,1569.3,6.37207]
[1674056915440,0.045,1570.1,1569.3,7.00881173]
[1674056915712,0.096,1570.2,1569.5,6.37124]
[1674056915713,1.018,1570.2,1569.5,6.37124]
[1674056915873,1.64921339,1570.2,1569.4,0.5321]
[1674056916083,0.64921339,1570.0,1569.4,0.066]
[1674056916295,1.75570792,1570.0,1569.3,0.4781]
[1674056916536,2.75570792,1570.0,1569.3,0.4781]
[1674056916752,0.64921339,1570.0,1569.2,6.37864]
[1674056916910,0.64921339,1569.7,1569.1,0.066]
[1674056917119,1.75595111,1569.7,1568.9,0.4942]
[1674056917331,8.12674111,1569.7,1568.8,1.4783]
[1674056917591,7.11900339,1569.7,1568.8,1.4783]
[1674056917751,7.11900339,1569.7,1568.8,1.0]
[1674056917752,7.59700339,1569.7,1568.8,1.0]
[1674056917962,1.22621339,1569.7,1568.8,1.0]
[1674056918209,1.62844148,1569.6,1568.8,1.0]
[1674056918399,0.64921339,1569.6,1568.8,7.85251]
[1674056918613,0.72421339,1569.7,1568.8,7.85251]
[1674056918807,0.64921339,1569.7,1568.8,7.85251]
[1674056919226,1.75580868,1569.7,1568.8,7.85251]
[1674056919481,0.64921339,1569.6,1568.8,7.85251]
[1674056919655,1.62844148,1569.7,1568.8,7.85251]
[1674056919861,0.64921339,1569.7,1568.8,7.85251]
[1674056920094,1.62844148,1569.7,1568.8,12.04075001]
[1674056920312,0.64921339,1569.8,1569.2,19.11759]
[1674056920499,1.75575296,1569.8,1569.2,19.11759]
[1674056920718,0.64921339,1569.7,1569.1,0.5442]
[1674056921010,0.64921339,1569.7,1568.9,69.75164309]
[1674056921011,0.64921339,1569.5,1568.9,63.44415309]
[1674056921342,0.64921339,1569.5,1568.9,63.37815309]
[1674056921343,0.64921339,1569.2,1568.9,63.37815309]
[1674056921551,0.64921339,1569.2,1568.8,0.066]
[1674056921782,0.64921339,1569.2,1568.8,1.0]
[1674056922535,1.62844148,1569.3,1568.7,0.0079033]
[1674056922749,1.62844148,1569.3,1568.6,1.0]
[1674056922750,1.62844148,1569.3,1568.6,0.9579033]
[1674056922901,0.64921339,1569.2,1568.6,0.9579033]
[1674056923111,0.97922809,1569.1,1568.6,0.9579033]
[1674056923380,0.97922809,1569.1,1568.5,1.35326383]
[1674056923381,0.97922809,1569.0,1568.5,1.35326383]
[1674056923597,0.97922809,1568.9,1568.5,1.35326383]
[1674056923911,2.08604731,1568.9,1568.5,1.35326383]
[1674056924123,2.38399122,1569.0,1568.5,1.35326383]
[1674056924431,1.10707379,1568.9,1568.5,0.691911]
[1674056925012,0.97922809,1569.0,1568.5,0.691911]
[1674056925382,0.97922809,1569.0,1568.4,69.291195]
[1674056925383,1.10697912,1569.0,1568.4,67.03101702]
[1674056925596,1.61596982,1568.9,1568.4,3.63686393]
[1674056925760,0.98222809,1568.9,1568.4,3.63686393]
[1674056925951,1.10714369,1568.9,1568.4,3.63686393]
[1674056926160,0.97922809,1569.0,1568.4,3.63686393]
[1674056926449,2.38399122,1569.1,1568.5,1.0]
[1674056926598,2.38399122,1569.2,1568.5,7.37536]
[1674056926952,1.10695997,1569.1,1568.5,7.37536]
[1674056927267,1.07822809,1569.3,1568.6,13.22835]
[1674056927423,1.06022809,1569.3,1568.7,1.0]
[1674056927628,0.97539809,1569.3,1568.8,12.74808]
[1674056927876,1.40476313,1569.5,1568.8,10.38677205]
[1674056928091,1.10681125,1569.4,1568.8,10.86507205]
[1674056928429,1.0,1569.3,1568.8,10.86507205]
[1674056928600,2.30576313,1569.3,1568.7,6.91874]
[1674056928793,1.10693721,1569.2,1568.7,12.74888]
[1674056929001,1.10693721,1569.2,1568.6,69.81907309]
[1674056929002,1.0,1569.3,1568.6,69.81907309]
[1674056929249,9.7850245,1569.3,1568.6,63.37815309]
[1674056929459,1.10696137,1569.2,1568.6,69.75321309]
[1674056929673,1.10696137,1569.2,1568.6,69.75323309]
[1674056929841,0.01805,1568.7,1568.6,63.37815309]
[1674056930073,0.01805,1568.7,1568.6,76.12834309]
[1674056930509,3.74286313,1569.4,1568.7,1.0]
[1674056930510,1.40476313,1569.4,1568.7,1.0]
[1674056930722,1.10688579,1569.3,1568.9,17.94087431]
[1674056931060,1.10688579,1569.3,1568.8,6.37425]
[1674056931206,4.03701109,1569.5,1568.9,6.37388]
[1674056931417,1.0,1569.3,1568.8,6.42794]
[1674056931628,1.30576313,1569.4,1568.7,0.066]
[1674056931888,6.37269,1569.2,1568.7,0.066]
[1674056932106,2.10692853,1569.1,1568.6,63.37815309]
[1674056932258,8.78629166,1569.0,1568.5,0.066]
[1674056932471,2.41269166,1568.9,1568.5,0.014]
[1674056932802,0.003,1568.9,1568.5,63.37815309]
[1674056932972,1.1821531,1569.0,1568.5,63.37815309]
[1674056933139,0.75794825,1569.1,1568.5,76.12904309]
[1674056933348,0.65894825,1569.1,1568.5,76.12904309]
[1674056933599,1.76595865,1569.1,1568.5,69.75353309]
[1674056933811,7.13083825,1569.2,1568.5,69.75353309]
[1674056934027,0.75794825,1569.2,1568.5,69.75353309]
[1674056934179,0.65894825,1569.3,1568.7,19.12326]
[1674056934389,0.60894825,1569.3,1568.7,19.12326]
[1674056934594,1.71585034,1569.3,1568.7,19.12326]
[1674056934862,1.099,1569.4,1568.7,19.12326]
[1674056935035,1.30576313,1569.2,1568.7,19.12326]
[1674056935242,1.10694498,1569.1,1568.7,12.74876]
[1674056935655,1.40476313,1569.3,1568.7,12.74876]
[1674056935863,1.10696102,1569.2,1568.7,12.74876]
[1674056936091,1.10696102,1569.3,1568.7,12.74876]
[1674056936327,0.021,1569.4,1568.7,12.74876]
[1674056936647,3.06460975,1569.5,1568.7,10.97781942]
[1674056936972,3.75460354,1569.5,1568.7,10.97781942]
[1674056937181,2.09475692,1569.4,1568.8,0.4783]
[1674056937328,1.10678172,1569.3,1568.9,19.12068]
[1674056937545,1.40476313,1569.5,1568.9,82.49883309]
[1674056937546,1.0869752,1569.5,1568.9,82.49883309]
[1674056937860,1.10678098,1569.4,1568.9,80.13769129]
[1674056938130,0.9879752,1569.4,1568.9,73.76413129]
[1674056938486,4.04488934,1569.5,1568.9,73.76413129]
[1674056938487,1.0869752,1569.5,1568.9,73.76413129]
[1674056938699,2.29373833,1569.5,1568.9,73.76413129]
[1674056938902,1.10681619,1569.4,1568.9,73.76413129]
[1674056939167,0.9879752,1569.4,1568.9,73.76413129]
[1674056939356,2.29373833,1569.5,1569.0,1.0]
[1674056939702,1.0869752,1569.6,1569.1,12.74574]
[1674056939851,1.10668864,1569.5,1569.1,12.08172678]
[1674056940065,0.9879752,1569.6,1569.1,12.08172678]
[1674056940377,2.37473833,1569.7,1569.1,12.55992678]
[1674056940590,2.37473833,1569.7,1569.1,12.08172678]
[1674056940591,0.9879752,1569.6,1569.1,12.08172678]
[1674056940860,1.10663464,1569.6,1569.1,12.08172678]
[1674056941010,0.9879752,1569.7,1569.1,12.08172678]
[1674056941479,2.29373833,1569.8,1569.2,1.0]
[1674056941699,1.0869752,1569.9,1569.3,25.48778]
[1674056941852,1.0869752,1569.9,1569.3,88.86593309]
[1674056941853,1.10646548,1569.8,1569.3,88.86593309]
[1674056942274,0.9879752,1569.9,1569.5,1.0]
[1674056942515,2.09441515,1569.9,1569.6,19.11288]
[1674056942861,1.0869752,1570.0,1569.6,19.11288]
[1674056943004,1.10638445,1569.9,1569.6,6.37096]
[1674056943216,1.10637498,1569.8,1569.6,12.742]
[1674056943456,0.9879752,1569.9,1569.6,67.26172973]
[1674056944003,2.09434622,1569.9,1569.6,67.26172973]
[1674056944217,1.10637102,1569.8,1569.6,60.89072973]
[1674056944530,0.66265074,1569.8,1569.6,60.89072973]
[1674056944750,0.66265074,1569.9,1569.6,67.26176973]
[1674056945471,0.66265074,1569.9,1569.7,13.74111]
[1674056945472,0.66265074,1569.8,1569.7,13.74111]
[1674056945668,4.04430367,1569.8,1569.6,6.43698]
[1674056945874,1.7706827,1569.7,1569.6,6.43698]
[1674056946050,0.66439012,1569.7,1569.6,6.37098]
[1674056946262,1.63224796,1569.7,1569.6,9.7911775]
[1674056946466,0.66439331,1569.7,1569.6,15.09276406]
[1674056946679,0.66439331,1569.8,1569.6,15.09276406]
[1674056946963,1.77069062,1569.8,1569.6,15.09276406]
[1674056947162,0.66439331,1569.7,1569.6,15.09276406]
[1674056947341,1.66101791,1569.8,1569.6,9.7911775]
[1674056947684,1.66101791,1569.8,1569.7,12.74128]
[1674056947685,0.66439331,1569.8,1569.7,12.74128]
[1674056947842,1.77066427,1569.8,1569.6,6.4367]
[1674056948060,0.66439331,1569.8,1569.7,12.74128]
[1674056948312,0.66439331,1569.8,1569.7,13.74128]
[1674056948483,0.33649331,1569.9,1569.7,13.74128]
[1674056948692,0.9966246,1569.9,1569.6,0.066]
[1674056948907,0.9966246,1569.8,1569.6,12.74408]
[1674056949157,0.9966246,1569.8,1569.6,6.37104]
[1674056949313,0.9966246,1569.8,1569.5,4.0747689]
[1674056949314,0.9966246,1569.7,1569.5,4.0747689]
[1674056949520,0.9966246,1569.7,1569.5,0.066]
[1674056949521,0.9966246,1569.6,1569.5,0.066]
[1674056949786,1.1062459,1569.6,1569.4,12.74348]
[1674056950097,2.32547911,1569.7,1569.5,6.37145]
[1674056950427,4.06735754,1569.6,1569.3,0.066]
[1674056950575,2.10305424,1569.5,1569.4,0.016]
[1674056950788,0.99659946,1569.5,1569.2,5.20796895]
[1674056951051,0.99659946,1569.4,1569.2,0.002]
[1674056951263,10.80387904,1569.4,1569.2,0.002]
[1674056951472,9.80399876,1569.3,1569.2,0.002]
[1674056951641,0.036,1568.9,1568.7,13.74867]
[1674056951859,0.036,1568.9,1568.8,6.3742]
[1674056952047,0.036,1568.9,1568.8,12.74849]
[1674056952418,0.036,1568.9,1568.8,13.74849]
[1674056952774,2.32532023,1569.3,1568.8,13.74849]
[1674056952991,0.99666543,1569.3,1568.9,1.0]
[1674056953234,0.99666543,1569.4,1569.0,6.3734]
[1674056953461,2.42432023,1569.5,1569.0,12.74688]
[1674056953647,1.10660856,1569.4,1569.2,6.37259]
[1674056954038,0.99666543,1569.5,1569.1,7.43892]
[1674056954039,2.32532023,1569.5,1569.1,7.43892]
[1674056954248,2.10325704,1569.4,1569.0,0.066]
[1674056954512,0.99666543,1569.4,1569.0,0.064]
[1674056954722,2.10330696,1569.4,1569.0,12.80688]
[1674056954947,2.10330696,1569.4,1569.0,12.74688]
[1674056955131,2.10330696,1569.4,1569.1,1.0]
[1674056955303,1.09566543,1569.5,1569.2,6.37267]
[1674056955514,1.10658993,1569.4,1569.2,6.37267]
[1674056955757,0.99666543,1569.5,1569.1,0.066]
[1674056955992,0.99666543,1569.4,1569.0,6.3734]
[1674056956307,0.99666543,1569.4,1568.9,7.43976]
[1674056956510,2.10326378,1569.4,1568.9,14.23985]
[1674056956825,1.09566543,1569.5,1568.9,15.78385]
[1674056957042,1.10660247,1569.4,1568.9,13.74765]
[1674056957189,3.4319227,1569.4,1568.9,6.37376]
[1674056957539,3.4319227,1569.4,1568.8,0.066]
[1674056957540,13.74240543,1569.2,1568.8,0.066]
[1674056957730,1.1068648,1569.1,1568.8,0.066]
[1674056957942,0.021,1569.2,1568.8,0.052]
[1674056958171,0.099,1569.2,1568.8,1.0]
[1674056958391,7.36926543,1569.3,1568.8,7.37426]
[1674056958392,15.16945023,1569.3,1568.8,7.37426]
[1674056958558,1.7712494,1569.2,1568.8,6.37426]
[1674056958775,8.1439194,1569.2,1568.7,0.066]
[1674056958985,0.66447669,1569.0,1568.7,0.064]
[1674056959191,8.03447212,1569.1,1568.7,0.06]
[1674056959406,8.03447212,1569.1,1568.6,6.37504]
[1674056959407,8.11547212,1569.1,1568.6,6.37504]
[1674056959649,8.13347212,1569.1,1568.6,6.37504]
[1674056959860,14.50677212,1569.1,1568.6,6.37504]
[1674056960031,0.66447669,1568.9,1568.5,0.066]
[1674056960262,0.66447669,1568.9,1568.4,3.38686393]
[1674056960263,1.66114212,1568.9,1568.4,3.38686393]
[1674056960468,0.66447669,1568.8,1568.4,3.38686393]
[1674056960683,0.76347669,1569.0,1568.4,16.13859393]
[1674056961096,0.66447669,1569.0,1568.5,1.0]
[1674056961316,1.76014212,1569.2,1568.6,12.74985]
[1674056961521,8.04005212,1569.2,1568.5,7.43933]
[1674056961729,7.13618669,1569.2,1568.6,6.37502]
[1674056961940,0.76347669,1569.2,1568.6,12.75013]
[1674056962294,0.66447669,1569.2,1568.7,1.0]
[1674056962445,0.66447669,1569.2,1568.8,19.12243]
[1674056962663,1.77130938,1569.2,1568.8,19.12243]
[1674056962910,0.66447669,1569.2,1568.8,19.12243]
[1674056963238,20.87648212,1569.4,1568.8,19.12243]
[1674056963408,6.47098,1569.4,1568.8,19.12243]
[1674056964078,7.13545669,1569.4,1568.8,19.12243]
[1674056964327,1.66114212,1569.2,1568.7,0.066]
[1674056964450,12.74648,1569.1,1568.7,0.066]
[1674056964663,6.3732,1569.1,1568.7,0.052]
[1674056964911,0.075,1569.1,1568.7,12.7494]
[1674056965078,0.075,1569.1,1568.7,6.3747]
[1674056965079,0.099,1569.1,1568.7,6.3747]
[1674056965428,12.74635,1569.1,1568.6,0.066]
[1674056965830,12.82135,1569.1,1568.6,0.014]
[1674056966026,1.77158693,1569.0,1568.4,3.38686393]
[1674056966235,19.12263,1568.9,1568.4,3.38686393]
[1674056966491,19.22163,1568.9,1568.4,3.38686393]
[1674056966703,12.84742,1568.9,1568.4,3.38686393]
[1674056967281,14.50856212,1568.9,1568.4,3.38686393]
[1674056967548,1.77175022,1568.8,1568.4,3.38686393]
[1674056967866,19.60264,1568.7,1568.4,3.38686393]
[1674056968098,19.22334,1568.7,1568.4,3.38686393]
[1674056968265,12.84856,1568.7,1568.4,3.38686393]
[1674056968662,19.22334,1568.7,1568.4,3.38686393]
[1674056968913,19.12653,1568.5,1568.3,0.30249981]
[1674056969131,19.12953,1568.5,1568.3,0.30049981]
[1674056969275,19.22553,1568.5,1568.3,0.29649981]
[1674056970020,0.296,1568.3,1568.1,0.1017683]
[1674056970264,25.50936,1568.1,1567.6,0.2947683]
[1674056970652,19.23102,1568.1,1567.6,0.2947683]
[1674056970838,19.23102,1568.1,1567.4,0.66420024]
[1674056970839,0.4785,1568.0,1567.3,0.01453386]
[1674056971144,0.29476829,1567.5,1567.3,0.01453386]
[1674056971352,12.95431829,1567.5,1567.0,0.96797246]
[1674056971500,19.33426829,1567.5,1567.0,0.96797246]
[1674056971709,19.33426829,1567.5,1566.3,62.99872973]
[1674056971710,0.4787,1567.4,1566.5,0.03]
[1674056971976,7.9294,1567.1,1566.5,0.03]
[1674056972196,0.4788,1567.0,1566.7,0.002]
[1674056972408,6.38202,1566.9,1566.4,0.1874536]
[1674056972626,6.38292,1566.7,1566.4,0.1874536]
[1674056972764,12.76584,1566.7,1566.4,0.2183436]
[1674056972974,12.86184,1566.7,1566.4,0.5123952]
[1674056973179,0.4789,1566.6,1566.4,0.5123952]
[1674056973443,20.70895,1566.5,1565.8,0.01532699]
[1674056973660,25.53916,1566.3,1565.8,0.01532699]
[1674056973865,1.558,1565.9,1565.6,0.056057]
[1674056974035,2.2791,1566.2,1565.3,6.02e-06]
[1674056974036,1.551,1565.7,1565.3,6.02e-06]
[1674056974251,27.11056,1565.4,1565.3,6.02e-06]
[1674056974448,27.11056,1565.4,1565.1,0.03]
[1674056974449,26.03186,1565.4,1565.1,0.03]
[1674056974657,26.03186,1565.4,1565.0,1.0]
[1674056974658,25.55256,1565.4,1565.0,0.342]
[1674056974873,1.558,1565.2,1565.0,0.342]
[1674056975083,1.558,1565.2,1564.8,0.032]
[1674056975415,0.16964,1565.4,1564.5,0.09474399]
[1674056975606,0.16964,1565.4,1564.6,6.39129]
[1674056975607,0.021,1565.4,1564.6,6.39129]
[1674056975815,0.07064,1566.0,1564.8,8.0]
[1674056976029,0.07064,1566.2,1565.1,19.16736]
[1674056976271,2.269,1566.5,1565.2,1.557]
[1674056976272,0.89240888,1566.0,1565.2,1.557]
[1674056976448,0.89240888,1566.0,1565.4,6.38787]
[1674056976864,0.89240888,1566.0,1565.5,1.0]
[1674056977071,0.03064,1565.9,1565.6,19.1615]
[1674056977391,0.03064,1565.9,1565.7,0.4792]
[1674056977628,0.03064,1565.9,1565.5,0.066]
[1674056977866,0.03064,1565.9,1565.6,0.004]
[1674056978236,0.03064,1565.9,1565.2,7.87432]
[1674056978409,0.03064,1565.9,1565.6,6.38722]
[1674056978836,0.03064,1565.9,1565.7,1.4792]
[1674056979003,0.03064,1565.9,1565.7,12.77368]
[1674056979349,0.03064,1565.9,1565.6,0.066]
[1674056979556,1.0,1565.7,1564.8,1.0]
[1674056979709,19.16486,1565.4,1565.0,0.321717]
[1674056979925,0.276973,1564.5,1564.4,1.89784357]
[1674056980134,0.030713,1564.5,1564.4,8.29006357]
[1674056980366,1.78,1565.3,1564.4,1.84784357]
[1674056980610,1.78,1565.3,1564.4,13.62834766]
[1674056980611,0.4793,1565.3,1564.4,13.62834766]
[1674056980765,0.4793,1565.4,1564.4,9.3564053]
[1674056981191,0.4793,1565.4,1564.7,0.255616]
[1674056981424,0.198,1565.5,1564.7,2.199616]
[1674056981662,0.198,1565.5,1564.9,19.17006]
[1674056981905,0.198,1565.5,1565.0,1.0]
[1674056982189,0.198,1565.5,1565.1,19.16748]
[1674056982359,0.10064,1566.0,1565.3,1.0]
[1674056982703,1.941,1566.2,1565.3,6.3885]
[1674056982924,1.959,1566.0,1565.2,0.70274173]
[1674056983139,0.4791,1565.9,1565.2,0.066]
[1674056983307,0.4791,1565.9,1565.2,0.064]
[1674056983492,0.4791,1565.9,1565.2,6.38892]
[1674056983705,1.4791,1565.9,1565.2,6.38892]
[1674056983974,1.4791,1565.9,1565.1,0.066]
[1674056984334,0.4791,1565.9,1565.1,6.38911]
[1674056984546,1.4791,1565.9,1565.1,6.38911]
[1674056984806,1.4791,1565.9,1565.0,0.066]
[1674056984807,1.959,1565.8,1565.0,0.066]
[1674056984966,1.959,1565.6,1565.0,0.064]
[1674056985172,0.4793,1565.5,1564.8,6.45646]
[1674056985488,0.4793,1565.5,1564.8,6.39246]
[1674056985722,0.4793,1565.5,1564.9,1.0]
[1674056985940,0.4793,1565.5,1565.0,12.77919]
[1674056986286,0.4792,1565.8,1565.0,13.41593173]
[1674056986508,0.096,1565.9,1565.0,17.75522459]
[1674056986669,30.089,1566.0,1565.2,1.0]
[1674056986880,0.099,1566.0,1565.4,19.16394]
[1674056987129,12.333,1566.3,1565.4,19.16394]
[1674056987335,0.578,1566.3,1565.4,19.16394]
[1674056987564,0.578,1566.4,1565.4,19.16394]
[1674056987732,1.0,1566.3,1565.4,19.16394]
[1674056987948,7.29829286,1566.3,1565.3,6.45443]
[1674056988299,0.4791,1566.2,1565.3,6.38843]
[1674056988508,0.4791,1566.2,1565.3,8.70183827]
[1674056988669,0.4791,1566.2,1565.4,1.0]
[1674056988884,0.4791,1566.2,1565.6,6.38716]
[1674056989095,0.4791,1566.2,1565.6,4.61265398]
[1674056989825,0.479,1566.3,1565.6,4.61265398]
[1674056990411,0.48548262,1566.3,1565.6,10.99997398]
[1674056990620,0.00648262,1566.3,1565.6,10.99997398]
[1674056990765,0.00648262,1566.3,1565.7,1.0]
[1674056991139,0.00648262,1566.3,1565.8,18.149553]
[1674056991715,1.66358554,1566.8,1565.9,7.28152196]
[1674056992174,1.66358554,1566.8,1566.2,25.53884]
[1674056993350,1.66358554,1566.8,1566.2,28.49158173]
[1674056993516,1.66358554,1566.8,1566.4,1.959]
[1674056993868,0.07064,1567.2,1566.8,25.52906]
[1674056994028,0.01936,1567.2,1566.8,25.52906]
[1674056994237,0.19476829,1567.5,1566.9,1.959]
[1674056994445,0.19476829,1567.5,1567.0,6.38129]
[1674056994654,0.19476829,1567.5,1567.1,0.3873]
[1674056994925,0.19476829,1567.5,1567.2,19.14216]
[1674056995075,0.19476829,1567.5,1567.2,16.77836257]
[1674056995283,2.89132796,1567.1,1567.0,0.002]
[1674056995492,2.88932796,1567.1,1566.7,0.03]
[1674056995782,2.88932796,1567.1,1566.5,6.38334]
[1674056996999,7.96e-06,1567.1,1566.8,1.0]
[1674056997222,7.96e-06,1567.1,1566.9,25.52808]
[1674056997451,7.96e-06,1567.1,1567.0,1.0]
[1674056997612,7.96e-06,1567.1,1567.0,7.38162]
[1674056997808,7.96e-06,1567.1,1567.0,9.32062]
[1674056998609,7.96e-06,1567.1,1567.0,7.38162]
[1674056998747,7.96e-06,1567.1,1567.0,6.38162]
[1674056999804,0.00648262,1567.6,1567.1,6.38119204]
[1674057000013,0.00648262,1567.6,1567.2,20.14237]
[1674057000219,0.00648262,1567.9,1567.3,1.0]
[1674057000434,0.084,1568.3,1567.5,1.944]
[1674057000701,1.0,1568.2,1567.7,12.75737]
[1674057000850,1.4784,1568.2,1567.7,12.75737]
[1674057001065,1.0,1568.2,1567.7,6.3786]
[1674057001278,0.4785,1568.1,1567.6,0.066]
[1674057001595,0.4785,1568.1,1567.4,0.066]
[1674057001596,0.94647805,1567.5,1567.4,0.066]
[1674057001809,3.38417805,1567.5,1567.4,0.066]
[1674057002015,3.38417805,1567.5,1567.4,0.056]
[1674057002016,3.47717805,1567.5,1567.4,0.056]
[1674057002224,3.47717805,1567.5,1567.0,6.2156]
[1674057002543,1.959,1567.3,1566.9,0.066]
[1674057002799,0.4788,1567.2,1566.9,0.066]
[1674057003117,0.4788,1567.2,1566.6,5.38302]
[1674057003482,0.4788,1567.2,1566.5,6.44959]
[1674057003693,0.4788,1567.2,1566.4,6.44989]
[1674057003957,1.959,1566.9,1566.4,6.38389]
[1674057004131,1.959,1566.9,1566.3,0.066]
[1674057004319,0.4789,1566.8,1566.1,6.45111]
[1674057004554,0.4789,1566.8,1566.3,6.38427]
[1674057004765,0.4789,1566.8,1566.1,6.38511]
[1674057005003,0.4789,1566.8,1566.2,6.43681]
[1674057005221,0.4789,1566.8,1566.2,6.43881]
[1674057005373,0.4789,1566.8,1566.2,6.38481]
[1674057005582,0.4789,1566.8,1566.1,6.45111]
[1674057005794,0.4789,1566.8,1566.2,12.76939]
[1674057006272,0.4789,1566.8,1566.2,6.38451]
[1674057006658,1.4789,1566.8,1566.2,6.38451]
[1674057006879,1.4789,1566.8,1566.1,0.066]
[1674057006880,1.959,1566.6,1566.1,0.066]
[1674057007112,1.959,1566.6,1566.1,6.45128]
[1674057007266,1.959,1566.6,1566.1,6.38528]
[1674057007684,2.4379,1566.6,1566.1,6.38528]
[1674057007890,1.959,1566.6,1566.1,6.38528]
[1674057008153,0.479,1566.5,1566.1,6.38528]
[1674057008578,0.479,1566.5,1565.8,6.38613]
[1674057008579,2.29951317,1566.0,1565.8,6.38613]
[1674057008940,2.29951317,1566.0,1565.7,6.44685]
[1674057009098,2.29951317,1566.0,1565.7,6.38685]
[1674057009312,2.29951317,1566.0,1565.6,6.45308]
[1674057009524,1.0,1565.9,1565.6,0.052]
[1674057009754,1.959,1565.8,1565.5,0.01]
[1674057010050,1.959,1565.8,1565.3,0.064]
[1674057010292,1.959,1565.8,1565.3,12.78097]
[1674057010508,1.959,1565.8,1565.2,0.066]
[1674057010509,3.2495965,1565.7,1565.2,0.066]
[1674057010704,1.14367669,1565.7,1565.2,0.006]
[1674057011039,1.11594173,1565.7,1564.9,5.27278504]
[1674057011195,0.4792,1565.8,1565.2,6.38887]
[1674057011410,0.4792,1565.8,1565.2,12.77782]
[1674057011671,0.4792,1565.8,1565.3,1.0]
[1674057011672,0.09,1565.8,1565.3,1.0]
[1674057011883,0.09,1565.8,1565.5,19.16307]
[1674057011884,0.096,1565.8,1565.5,19.16307]
[1674057012207,0.099,1565.8,1565.5,19.16307]
[1674057012360,2.34451317,1566.0,1565.5,19.16307]
[1674057012361,2.31751317,1566.0,1565.7,19.16049]
[1674057012569,0.081,1566.1,1565.7,19.16049]
[1674057012570,0.081,1566.1,1565.8,1.0]
[1674057012774,0.045,1566.4,1565.9,19.1583]
[1674057012985,0.045,1566.4,1566.1,1.959]
[1674057013192,0.01936,1566.5,1566.2,25.53952]
[1674057013456,0.018,1566.3,1566.2,25.53952]
[1674057013788,0.786,1566.3,1566.2,6.38488]
[1674057014081,0.786,1566.3,1566.1,6.38501]
[1674057014297,0.786,1566.3,1566.1,6.44901]
[1674057014298,0.018,1566.3,1566.1,6.44901]
[1674057014508,0.77887589,1566.6,1566.1,6.44901]
[1674057014723,0.77187589,1566.6,1566.1,6.38501]
[1674057014892,0.67287589,1566.6,1566.1,6.38501]
[1674057015351,0.41447669,1566.5,1566.1,6.38501]
[1674057015521,1.41447669,1566.5,1566.1,6.38501]
[1674057015732,1.0,1566.5,1566.1,6.38501]
[1674057015983,1.00506463,1566.6,1566.1,6.38501]
[1674057016196,0.0083992,1566.6,1566.1,6.38501]
[1674057016517,2.00506463,1566.6,1566.1,6.38501]
[1674057016708,2.95566543,1566.5,1566.0,0.066]
[1674057016920,1.941,1566.2,1566.0,0.066]
[1674057017165,0.4791,1566.1,1566.0,0.014]
[1674057017483,1.10893948,1566.1,1565.8,54.58372973]
[1674057017674,1.47576543,1566.0,1565.8,54.51972973]
[1674057017888,3.7556548,1565.9,1565.7,0.066]
[1674057018061,2.91590807,1565.8,1565.7,0.066]
[1674057018272,4.50613948,1565.8,1565.7,0.054]
[1674057018629,0.162,1565.4,1565.1,12.77856]
[1674057018790,0.162,1565.4,1565.1,0.004]
[1674057019216,0.79874173,1565.4,1565.0,0.054]
[1674057019485,0.4793,1565.3,1565.0,0.054]
[1674057019796,0.4793,1565.3,1564.8,38.02433767]
[1674057019797,7.86809,1565.3,1564.9,0.052]
[1674057020109,0.63674173,1565.2,1564.8,0.002]
[1674057020424,0.63674173,1565.2,1564.7,0.55886045]
[1674057020425,1.4794,1565.1,1564.7,0.55886045]
[1674057020580,1.4794,1565.1,1564.8,37.35858655]
[1674057020792,1.63222391,1565.0,1564.8,37.35858655]
[1674057021049,1.58942799,1564.9,1564.4,0.07784357]